fUST/lending_fUST_20260422
["ID","MTS","AMOUNT","RATE_DAILY","PERIOD"]
[420954942,1776794890189,500.30145424,0.00025338,120]
[420954943,1776794891957,500.88571981,0.00025338,120]
[420954944,1776794893648,506.28252301,0.00025338,120]
[420954945,1776794894724,503.42193728,0.00025338,120]
[420954946,1776794895669,513.8623864,0.00025338,120]
[420954947,1776794895751,510.81432536,0.00025338,120]
[420954948,1776794897405,514.94678675,0.00025338,120]
[420954950,1776794899604,502.50725907,0.00025338,120]
[420954951,1776794900289,504.14773575,0.00025338,120]
[420954952,1776794900553,502.43350297,0.00025338,120]
[420954953,1776794902239,508.9682055,0.00025338,120]
[420954954,1776794903993,327.852542,0.00025338,120]
[420954955,1776794904820,500.89092391,0.00025338,120]
[420954956,1776794906845,507.18059358,0.00025338,120]
[420954958,1776794908308,501.45181414,0.00025338,120]
[420954959,1776794911233,507.90654655,0.00025338,120]
[420954960,1776794911799,501.07166696,0.00025338,120]
[420954962,1776794912519,500.0,0.00025338,120]
[420954963,1776794912738,500.0,0.00025338,120]
[420954964,1776794912957,629.21,0.00025338,120]
[420954965,1776794914326,500.0,0.00025338,120]
[420954966,1776794914549,500.0,0.00025338,120]
[420954967,1776794914773,551.09298896,0.00025338,120]
[420954968,1776794919248,503.59622829,0.00025338,120]
[420954969,1776794921047,503.83440418,0.00025338,120]
[420954970,1776794923706,500.0,0.00025338,120]
[420954971,1776794923934,500.85863501,0.00025338,120]
[420954972,1776794923989,638.42545442,0.00025338,120]
[420954973,1776794926363,504.28525095,0.00025338,120]
[420954974,1776794928774,511.32849098,0.00025338,120]
[420954975,1776794933420,500.21053412,0.00025338,120]
[420954976,1776794933487,501.79963244,0.00025338,120]
[420954977,1776794935233,12684.409615,0.00025338,120]
[420954978,1776794936584,648.7017773,0.00025338,120]
[420954980,1776794939804,516.02661859,0.00025338,120]
[420954981,1776794942880,502.03986251,0.00025338,120]
[420954982,1776794944376,504.03302603,0.00025338,120]
[420954983,1776794944992,500.83163086,0.00025338,120]
[420954984,1776794948071,500.17976885,0.00025338,120]
[420954985,1776794950889,504.89919485,0.00025338,120]
[420954986,1776794951146,502.1028126,0.00025338,120]
[420954987,1776794957841,500.91684689,0.00025338,120]
[420954988,1776794959290,500.0,0.00025338,120]
[420954989,1776794959376,514.12256142,0.00025338,120]
[420954990,1776794959513,500.0,0.00025338,120]
[420954991,1776794959769,500.0,0.00025338,120]
[420954992,1776794960031,420.11,0.00025338,120]
[420954993,1776794961946,500.49835268,0.00025338,120]
[420954994,1776794964241,510.66236783,0.00025338,120]
[420954995,1776794966620,502.82794205,0.00025338,120]
[420954996,1776794971222,505.14280805,0.00025338,120]
[420954997,1776794973193,258.47260239,0.00025338,120]
[420954998,1776794975004,501.80444069,0.00025338,120]
[420954999,1776794976774,500.0,0.00025338,120]
[420955000,1776794979833,506.12196428,0.00025338,120]
[420955001,1776794980337,500.0,0.00025338,120]
[420955002,1776794980574,204.37,0.00025338,120]
[420955003,1776794986038,500.87262025,0.00025338,120]
[420955004,1776794987690,503.34672258,0.00025338,120]
[420955005,1776794989395,501.70674331,0.00025338,120]
[420955006,1776794991060,500.0,0.00025338,120]
[420955007,1776794991290,500.0,0.00025338,120]
[420955008,1776794991546,500.0,0.00025338,120]
[420955009,1776794991775,547.18,0.00025338,120]
[420955010,1776794994487,500.0,0.00025338,120]
[420955011,1776794995276,260.44380435,0.00025338,120]
[420955012,1776794997098,503.55858399,0.00025338,120]
[420955013,1776795000959,502.60823632,0.00025338,120]
[420955014,1776795005017,541.80088699,0.00025338,120]
[420955015,1776795016684,502.6569667,0.00025338,120]
[420955016,1776795016743,501.64496984,0.00025338,120]
[420955017,1776795021408,500.0,0.00025338,120]
[420955018,1776795021633,500.0,0.00025338,120]
[420955019,1776795021904,500.0,0.00025338,120]
[420955020,1776795022152,500.0,0.00025338,120]
[420955021,1776795022396,500.0,0.00025338,120]
[420955022,1776795022630,500.0,0.00025338,120]
[420955023,1776795022858,370.6,0.00025338,120]
[420955024,1776795023149,500.34610593,0.00025338,120]
[420955025,1776795027057,501.50727175,0.00025338,120]
[420955059,1776795032451,-3426.85968305,8.003e-05,10]
[420955061,1776795032464,-1573.14031695,8.003e-05,10]
[420955063,1776795032475,-433.08333903,8.084e-05,10]
[420955065,1776795032484,-208.28009292,8.207e-05,2]
[420955067,1776795032494,-1263.45805694,8.5e-05,7]
[420955069,1776795032504,-289.21,9.267e-05,18]
[420955071,1776795032514,-245.77050965,0.00010207,2]
[420955073,1776795032524,-250.0,0.0001079,2]
[420955074,1776795032533,-1200.0,0.00011976,2]
[420955076,1776795032543,-582.13494629,0.00011978,2]
[420955078,1776795032553,-300.0,0.00012096,2]
[420955080,1776795032565,-300.0,0.00012096,2]
[420955082,1776795032576,-1110.252308,0.00012097,2]
[420955084,1776795032587,-626.82472562,0.00012122,2]
[420955086,1776795032598,-605.66398085,0.0001217,2]
[420955088,1776795032609,-451.69663448,0.0001217,2]
[420955090,1776795032619,-500.0,0.0001217,2]
[420955092,1776795032629,-605.66398085,0.0001217,2]
[420955094,1776795032639,-605.66398085,0.0001217,2]
[420955096,1776795032649,-640.70388612,0.0001217,2]
[420955098,1776795032659,-605.66398085,0.0001217,2]
[420955100,1776795032669,-605.66398085,0.0001217,2]
[420955102,1776795032679,-605.66398085,0.0001217,2]
[420955104,1776795032689,-500.0,0.0001217,2]
[420955106,1776795032699,-605.66398085,0.0001217,2]
[420955108,1776795032709,-605.66398085,0.0001217,2]
[420955110,1776795032718,-605.66398085,0.0001217,2]
[420955112,1776795032728,-500.0,0.0001217,2]
[420955114,1776795032738,-355.20464586,0.00012171,2]
[420955116,1776795032748,-210159.2647105,0.00012171,2]
[420955118,1776795032760,-1499.63051552,0.00012171,2]
[420955259,1776795038805,536.66970942,0.00025338,120]
[420955260,1776795038920,-605.66398085,0.0001217,2]
[420955261,1776795038930,-293.19675692,0.0001217,2]
[420955262,1776795038940,-500.0,0.0001217,2]
[420955263,1776795038950,-605.66398085,0.0001217,2]
[420955264,1776795038960,-500.0,0.0001217,2]
[420955265,1776795038970,-500.0,0.0001217,2]
[420955266,1776795038980,-500.0,0.0001217,2]
[420955267,1776795038990,-605.66398085,0.0001217,2]
[420955268,1776795038999,-500.0,0.0001217,2]
[420955269,1776795039009,-235.87659721,0.0001217,2]
[420955270,1776795039019,-605.66398085,0.0001217,2]
[420955271,1776795039029,-605.66398085,0.0001217,2]
[420955272,1776795039039,-605.66398085,0.0001217,2]
[420955273,1776795039049,-50098.71084829,0.00012171,2]
[420955274,1776795039060,-283.26092637,0.00012207,2]
[420955275,1776795039070,-436.267,0.00012269,2]
[420955276,1776795039080,-500.0,0.00012269,2]
[420955277,1776795039090,-500.0,0.0001227,2]
[420955278,1776795039100,-1151.3288981,0.00012368,2]
[420955279,1776795039110,-2105.5076812,0.00012374,2]
[420955280,1776795039120,-171.5830378,0.00012374,2]
[420955282,1776795039130,-177.19341079,0.0001247,30]
[420955284,1776795039140,-177.19341079,0.00012471,30]
[420955285,1776795039150,-177.19341079,0.00012471,30]
[420955286,1776795039160,-2176.47261137,0.00012478,2]
[420955288,1776795039170,-192.40120149,0.00012488,2]
[420955289,1776795039180,-500.0,0.00012488,2]
[420955290,1776795039191,-500.0,0.00012488,2]
[420955291,1776795039202,-500.0,0.00012488,2]
[420955292,1776795039212,-500.0,0.00012488,2]
[420955293,1776795039222,-500.0,0.00012488,2]
[420955294,1776795039233,-500.0,0.00012488,2]
[420955295,1776795039242,-360.97986297,0.00012488,2]
[420955296,1776795039253,-500.0,0.00012488,2]
[420955297,1776795039263,-500.0,0.00012488,2]
[420955298,1776795039273,-151.5,0.00012488,2]
[420955299,1776795039283,-500.0,0.00012488,2]
[420955300,1776795039293,-262.52827849,0.00012488,2]
[420955301,1776795039303,-500.0,0.00012488,2]
[420955302,1776795039314,-151.5,0.00012488,2]
[420955303,1776795039324,-151.5,0.00012488,2]
[420955304,1776795039334,-248.60296465,0.00012488,2]
[420955305,1776795039343,-151.5,0.00012488,2]
[420955306,1776795039353,-249.20564009,0.00012488,2]
[420955307,1776795039363,-261.99589615,0.00012488,2]
[420955308,1776795039373,-500.0,0.00012488,2]
[420955309,1776795039383,-500.0,0.00012488,2]
[420955310,1776795039393,-325.76162427,0.00012488,2]
[420955311,1776795039402,-2501.47436166,0.00012578,2]
[420955312,1776795039412,-500.0,0.00012578,2]
[420955313,1776795039422,-1110.252308,0.00012606,2]
[420955314,1776795039433,-177.19341079,0.0001262,30]
[420955315,1776795039443,-253.081,0.00012747,2]
[420955316,1776795039453,-1547.832,0.00012747,2]
[420955317,1776795039463,-441.0,0.00012747,2]
[420955318,1776795039474,-184.0,0.00012747,2]
[420955319,1776795039484,-509.0,0.00012762,2]
[420955320,1776795039495,-509.0,0.00012762,2]
[420955321,1776795039505,-509.0,0.00012762,2]
[420955322,1776795039516,-509.0,0.00012762,2]
[420955323,1776795039526,-509.0,0.00012762,2]
[420955324,1776795039536,-509.0,0.00012762,2]
[420955325,1776795039546,-509.0,0.00012762,2]
[420955326,1776795039556,-509.0,0.00012762,2]
[420955327,1776795039567,-509.0,0.00012762,2]
[420955328,1776795039576,-509.0,0.00012762,2]
[420955329,1776795039586,-509.0,0.00012762,2]
[420955330,1776795039595,-509.0,0.00012762,2]
[420955331,1776795039605,-509.0,0.00012762,2]
[420955332,1776795039614,-509.0,0.00012762,2]
[420955333,1776795039624,-509.0,0.00012762,2]
[420955334,1776795039634,-509.0,0.00012762,2]
[420955335,1776795039644,-509.0,0.00012762,2]
[420955336,1776795039654,-509.0,0.00012762,2]
[420955337,1776795039663,-509.0,0.00012762,2]
[420955338,1776795039673,-151.5,0.00012762,2]
[420955339,1776795039683,-509.0,0.00012762,2]
[420955340,1776795039692,-151.5,0.00012762,2]
[420955341,1776795039703,-151.5,0.00012762,2]
[420955342,1776795039713,-163.11804648,0.00012762,2]
[420955343,1776795039723,-509.0,0.00012762,2]
[420955344,1776795039732,-509.0,0.00012762,2]
[420955345,1776795039742,-509.0,0.00012762,2]
[420955346,1776795039752,-511.37709176,0.00012762,2]
[420955347,1776795039762,-2826.47611195,0.00012778,2]
[420955348,1776795039771,-500.0,0.00012852,2]
[420955349,1776795039781,-162.3,0.00012924,2]
[420955350,1776795039790,-3151.47786224,0.00012978,2]
[420955351,1776795039801,-257.10670968,0.00012989,2]
[420955352,1776795039812,-160.0,0.00013026,2]
[420955353,1776795039821,-151.0,0.00013036,2]
[420955354,1776795039830,-3455.75372298,0.00013078,2]
[420955355,1776795039840,-275.22760953,0.00013083,2]
[420955356,1776795039850,-1110.252308,0.00013116,2]
[420955357,1776795039860,-500.0,0.00013126,2]
[420955358,1776795039870,-210.27973076,0.00013142,2]
[420955359,1776795039880,-469.0423266,0.00013142,2]
[420955360,1776795039890,-537.6845,0.00013142,2]
[420955361,1776795039901,-500.0,0.00013142,2]
[420955362,1776795039911,-500.0,0.00013142,2]
[420955363,1776795039921,-500.0,0.00013142,2]
[420955364,1776795039931,-500.0,0.00013142,2]
[420955365,1776795039940,-500.0,0.00013142,2]
[420955366,1776795039950,-1957.856,0.00013142,2]
[420955367,1776795039959,-500.0,0.00013142,2]
[420955368,1776795039969,-500.0,0.00013142,2]
[420955369,1776795039978,-500.0,0.00013142,2]
[420955370,1776795039988,-500.0,0.00013142,2]
[420955371,1776795039998,-151.0,0.00013142,2]
[420955372,1776795040008,-2150.738,0.00013142,2]
[420955373,1776795040018,-500.0,0.00013142,2]
[420955374,1776795040027,-500.0,0.00013142,2]
[420955375,1776795040036,-500.0,0.00013142,2]
[420955376,1776795040046,-500.0,0.00013142,2]
[420955377,1776795040056,-500.0,0.00013142,2]
[420955378,1776795040066,-500.0,0.00013142,2]
[420955379,1776795040075,-500.0,0.00013142,2]
[420955380,1776795040085,-500.0,0.00013142,2]
[420955381,1776795040095,-500.0,0.00013142,2]
[420955382,1776795040105,-537.6845,0.00013142,2]
[420955383,1776795040115,-1680.0,0.00013174,2]
[420955384,1776795040125,-500.0,0.00013186,2]
[420955385,1776795040134,-300.10085644,0.00013186,2]
[420955386,1776795040144,-557.5788265,0.00013197,2]
[420955387,1776795040154,-1485.40188294,0.00013197,2]
[420955388,1776795040164,-578.20924308,0.00013252,2]
[420955389,1776795040174,-202.87,0.00013263,2]
[420955390,1776795040184,-420.0,0.00013278,2]
[420955391,1776795040194,-599.60298507,0.00013307,2]
[420955392,1776795040204,-1707.05236364,0.00013318,2]
[420955393,1776795040215,-456.0124305,0.00013336,2]
[420955394,1776795040225,-621.78829552,0.00013362,2]
[420955395,1776795040235,-528.37916429,0.000134,2]
[420955397,1776795040244,-644.79446244,0.00013417,2]
[420955398,1776795040254,-154.033607,0.00013425,2]
[420955399,1776795040264,-1707.05236362,0.0001347,2]
[420955400,1776795040274,-3476.66332827,0.00013595,2]
[420955401,1776795040285,-243.45,0.00013601,2]
[420955402,1776795040294,-1707.05236362,0.00013621,2]
[420955403,1776795040304,-1110.252308,0.00013625,2]
[420955404,1776795040316,-500.0,0.00013643,2]
[420955405,1776795040325,-500.0,0.00013643,2]
[420955406,1776795040335,-500.0,0.00013643,2]
[420955407,1776795040345,-500.0,0.00013643,2]
[420955408,1776795040354,-500.0,0.00013643,2]
[420955409,1776795040364,-500.0,0.00013643,2]
[420955410,1776795040374,-500.0,0.00013643,2]
[420955411,1776795040385,-500.0,0.00013643,2]
[420955412,1776795040395,-500.0,0.00013643,2]
[420955413,1776795040404,-500.0,0.00013643,2]
[420955414,1776795040414,-500.0,0.00013668,2]
[420955415,1776795040423,-2230.315306,0.0001369,2]
[420955416,1776795040433,-621.78829552,0.0001369,2]
[420955417,1776795040443,-500.0,0.00013693,2]
[420955418,1776795040453,-500.0,0.00013693,2]
[420955419,1776795040463,-500.0,0.00013693,2]
[420955420,1776795040473,-500.0,0.00013693,2]
[420955421,1776795040483,-586.65297465,0.00013693,2]
[420955422,1776795040494,-500.0,0.00013696,2]
[420955423,1776795040504,-500.0,0.00013696,2]
[420955424,1776795040514,-500.0,0.00013696,2]
[420955425,1776795040524,-1001.40613054,0.00013698,2]
[420955426,1776795040534,-1001.6569461,0.00013698,2]
[420955427,1776795040543,-500.0,0.00013698,2]
[420955428,1776795040554,-500.0,0.00013698,2]
[420955429,1776795040565,-500.0,0.00013698,2]
[420955430,1776795040575,-500.0,0.00013698,2]
[420955431,1776795040585,-500.0,0.00013698,2]
[420955432,1776795040595,-500.0,0.00013698,2]
[420955433,1776795040605,-500.0,0.00013698,2]
[420955434,1776795040615,-500.0,0.00013698,2]
[420955435,1776795040625,-500.0,0.00013698,2]
[420955436,1776795040635,-500.0,0.00013698,2]
[420955437,1776795040645,-500.0,0.00013698,2]
[420955438,1776795040656,-500.0,0.00013698,2]
[420955440,1776795040665,-500.0,0.00013698,2]
[420955442,1776795040675,-569.53,0.00013698,2]
[420955443,1776795040685,-1000.0,0.00013699,2]
[420955444,1776795040695,-768.441299,0.00013699,2]
[420955445,1776795040705,-198.994741,0.00013699,2]
[420955446,1776795040715,-198.994741,0.00013699,2]
[420955447,1776795040724,-198.994741,0.00013699,2]
[420955448,1776795040734,-198.994741,0.00013699,2]
[420955449,1776795040744,-151.0,0.00013699,2]
[420955450,1776795040753,-296.896056,0.00013699,2]
[420955451,1776795040763,-296.896056,0.00013699,2]
[420955453,1776795040772,-296.896056,0.00013699,2]
[420955454,1776795040782,-296.896056,0.00013699,2]
[420955455,1776795040791,-296.896056,0.00013699,2]
[420955456,1776795040801,-296.896056,0.00013699,2]
[420955457,1776795040810,-296.896056,0.00013699,2]
[420955458,1776795040820,-296.896056,0.00013699,2]
[420955460,1776795040830,-1000.0,0.00013699,2]
[420955461,1776795040839,-178.55353719,0.00013699,2]
[420955462,1776795040849,-160.0,0.0001372,2]
[420955463,1776795040859,-806.486543,0.0001372,2]
[420955464,1776795040869,-1452.973086,0.0001372,2]
[420955465,1776795040878,-193.022303,0.0001372,2]
[420955466,1776795040889,-500.0,0.00013728,2]
[420955467,1776795040899,-298.34502795,0.00013728,2]
[420955468,1776795040908,-158.33185882,0.00013728,2]
[420955469,1776795040918,-158.3370925,0.00013728,2]
[420955470,1776795040928,-151.0,0.00013734,2]
[420955471,1776795040938,-1000.0,0.00013734,2]
[420955472,1776795040948,-1707.05236362,0.00013773,2]
[420955473,1776795040958,-194.0,0.000139,2]
[420955474,1776795040967,-1707.05236362,0.00013924,2]
[420955475,1776795040977,-527.5,0.0001394,2]
[420955476,1776795040986,-441.83,0.0001394,2]
[420955477,1776795040996,-486.03,0.0001394,2]
[420955478,1776795041007,-574.25247316,0.00013964,2]
[420955479,1776795041016,-2297.00989263,0.00013964,2]
[420955480,1776795041026,-5168.27225841,0.00013964,2]
[420955481,1776795041035,-351.66225702,0.00013964,2]
[420955482,1776795041045,-1405.24237907,0.00013964,2]
[420955483,1776795041055,-500.0,0.00013999,2]
[420955484,1776795041064,-198.994741,0.00014,2]
[420955485,1776795041074,-198.994741,0.00014,2]
[420955486,1776795041084,-198.994741,0.00014,2]
[420955487,1776795041094,-198.994741,0.00014,2]
[420955488,1776795041104,-207.313348,0.00014,2]
[420955489,1776795041113,-296.896056,0.00014,2]
[420955490,1776795041123,-296.896056,0.00014,2]
[420955491,1776795041133,-296.896056,0.00014,2]
[420955492,1776795041142,-296.896056,0.00014,2]
[420955493,1776795041152,-387737.78082237,0.00014,2]
[420955494,1776795041162,-1110.252308,0.00014134,2]
[420955495,1776795041172,-1001.41723643,0.00014191,2]
[420955496,1776795041182,-500.0,0.00014191,2]
[420955497,1776795041192,-1000.0,0.00014191,2]
[420955498,1776795041202,-1000.0,0.00014191,2]
[420955499,1776795041211,-1000.0,0.00014191,2]
[420955500,1776795041221,-1000.0,0.00014191,2]
[420955501,1776795041231,-1000.0,0.00014191,2]
[420955502,1776795041241,-500.0,0.00014191,2]
[420955503,1776795041251,-1000.0,0.00014191,2]
[420955504,1776795041261,-220.0865898,0.00014201,2]
[420955505,1776795041271,-320.7513431,0.00014207,2]
[420955506,1776795041281,-2312.83697232,0.00014238,2]
[420955507,1776795041291,-1000.0,0.00014241,2]
[420955508,1776795041302,-193.55265874,0.00014241,2]
[420955509,1776795041312,-1081.72857357,0.00014241,2]
[420955510,1776795041322,-1000.0,0.00014244,2]
[420955511,1776795041332,-183.6137343,0.00014244,2]
[420955512,1776795041343,-1000.0,0.00014276,2]
[420955513,1776795041352,-503.01259402,0.00014282,2]
[420955514,1776795041363,-3801.68302785,0.00014311,2]
[420955515,1776795041373,-1099.754377,0.00014406,2]
[420955516,1776795041384,-2244.0,0.00014491,2]
[420955517,1776795041394,-296.896056,0.00014492,2]
[420955518,1776795041404,-296.896056,0.00014492,2]
[420955519,1776795041414,-296.896056,0.00014492,2]
[420955520,1776795041423,-296.896056,0.00014492,2]
[420955521,1776795041433,-587.0,0.00014574,2]
[420955522,1776795041443,-1110.252308,0.00014643,2]
[420955523,1776795041453,-325.3138638,0.00014725,2]
[420955524,1776795041463,-325.3138637,0.00014725,2]
[420955525,1776795041474,-455.7675055,0.00014725,2]
[420955526,1776795041484,-325.3138637,0.00014725,2]
[420955527,1776795041494,-151.0,0.00014726,2]
[420955528,1776795041504,-1500.0,0.00014739,2]
[420955529,1776795041514,-1500.0,0.00014739,2]
[420955530,1776795041524,-1500.0,0.00014739,2]
[420955531,1776795041534,-1500.0,0.00014739,2]
[420955532,1776795041544,-228.90893437,0.00014739,2]
[420955533,1776795041554,-1500.0,0.00014739,2]
[420955534,1776795041565,-2325.05420977,0.00014786,2]
[420955535,1776795041575,-325.0314363,0.00014787,2]
[420955536,1776795041585,-454.6469858,0.00014787,2]
[420955537,1776795041595,-1518.90428633,0.00014788,2]
[420955538,1776795041605,-1500.0,0.00014792,2]
[420955539,1776795041615,-1500.0,0.00014823,2]
[420955540,1776795041624,-256.14814815,0.000149,2]
[420955541,1776795041634,-155.0,0.00014999,2]
[420955542,1776795041644,-219173.40423983,0.00015,2]
[420955562,1776795043727,-75588.0,0.00015,2]
[420955563,1776795043739,-46100.0,0.00015,2]
[420955566,1776795043782,-3314.75668427,0.00015,2]
[420955570,1776795044779,501.92291022,0.00025338,120]
[420955576,1776795046755,-43893.49936851,0.00015,2]
[420955577,1776795046766,-3866.95,0.00015,2]
[420955578,1776795046778,-22675.99176292,0.00015,2]
[420955589,1776795069947,500.34348619,0.00025338,120]
[420955590,1776795073240,500.0,0.00025338,120]
[420955591,1776795073465,500.81042359,0.00025338,120]
[420955592,1776795075173,500.43365899,0.00025338,120]
[420955593,1776795076801,500.0,0.00025338,120]
[420955594,1776795077025,168.03939554,0.00025338,120]
[420955595,1776795082220,608.06373061,0.00025338,120]
[420955596,1776795085772,500.45439314,0.00025338,120]
[420955597,1776795096669,500.0,0.00025338,120]
[420955598,1776795096903,409.44806636,0.00025338,120]
[420955599,1776795146596,500.0,0.00025338,120]
[420955600,1776795152921,503.55520175,0.00025338,120]
[420955601,1776795154875,501.16116673,0.00025338,120]
[420955602,1776795156333,500.0,0.00025338,120]
[420955603,1776795158059,546.47232153,0.00025338,120]
[420955604,1776795165923,501.74298524,0.00025338,120]
[420955610,1776795445097,500.0,0.00025259,120]
[420955616,1776795744813,500.0,0.00025259,120]
[420955617,1776795895891,-1215.01772896,6.16e-05,10]
[420955636,1776795988857,167.954485,0.00025262,120]
[420955637,1776795994186,193.12661,0.00025262,120]
[420955638,1776795994562,193.12661,0.00025262,120]
[420955643,1776796045091,500.0,0.00025262,120]
[420955653,1776796232833,-426.65314757,6.098e-05,10]
[420955654,1776796232870,-1501.47030915,6.098e-05,10]
[420955655,1776796232882,-3071.87654328,6.098e-05,10]
[420955656,1776796232891,-187.11883548,6.191e-05,2]
[420955657,1776796232901,-628.38349254,6.222e-05,2]
[420955658,1776796232913,-392.30021066,6.222e-05,2]
[420955659,1776796232923,-179.163327,6.285e-05,2]
[420955660,1776796232932,-220.80022587,8.191e-05,2]
[420955661,1776796232942,-254.48161625,0.00010191,2]
[420955662,1776796232951,-300.0,0.0001197,2]
[420955663,1776796232960,-224.77239047,0.00012073,2]
[420955664,1776796232971,-500.0,0.00012073,2]
[420955665,1776796232980,-935.26533622,0.00012168,2]
[420955668,1776796233008,-283.19362648,0.00012168,2]
[420955670,1776796233018,-288.16300664,0.00012191,2]
[420955671,1776796233028,-179.163327,0.00012569,2]
[420955673,1776796233037,-160.0,0.0001305,2]
[420955674,1776796233046,-420.0,0.00013141,2]
[420955676,1776796233055,-184.0,0.00013248,2]
[420955678,1776796233064,-441.0,0.00013248,2]
[420955680,1776796233073,-1000.0,0.00013699,2]
[420955681,1776796233082,-455.7675055,0.00013904,2]
[420955684,1776796233217,-583.13522331,0.00014,10]
[420955685,1776796233279,-321.84439703,0.00014191,2]
[420955686,1776796233288,-587.0,0.00014426,2]
[420955687,1776796233298,-357.75860704,0.000146,2]
[420955688,1776796233307,-1242.55822538,0.000146,2]
[420955689,1776796233316,-800.15841621,0.000146,2]
[420955690,1776796233325,-1319.05074637,0.000146,2]
[420955691,1776796233335,-500.0,0.00014703,2]
[420955692,1776796233344,-500.0,0.00014703,2]
[420955693,1776796233354,-500.0,0.00014703,2]
[420955694,1776796233363,-500.0,0.00014703,2]
[420955695,1776796233373,-500.0,0.00014703,2]
[420955696,1776796233382,-500.0,0.00014703,2]
[420955697,1776796233391,-500.0,0.00014703,2]
[420955698,1776796233401,-500.0,0.00014703,2]
[420955699,1776796233410,-500.0,0.00014703,2]
[420955700,1776796233419,-500.0,0.00014703,2]
[420955701,1776796233428,-500.0,0.00014703,2]
[420955702,1776796233437,-500.0,0.00014703,2]
[420955703,1776796233448,-500.0,0.00014703,2]
[420955704,1776796233457,-500.0,0.00014703,2]
[420955705,1776796233467,-500.0,0.00014703,2]
[420955706,1776796233476,-500.0,0.00014703,2]
[420955707,1776796233489,-500.0,0.00014703,2]
[420955708,1776796233498,-500.0,0.00014703,2]
[420955709,1776796233509,-316.18764414,0.00014711,2]
[420955710,1776796233518,-500.0,0.00014711,2]
[420955711,1776796233528,-500.0,0.00014711,2]
[420955712,1776796233537,-498.49272028,0.00014711,2]
[420955713,1776796233548,-303.98628858,0.00014711,2]
[420955714,1776796233557,-514.81438372,0.00014711,2]
[420955715,1776796233566,-514.81438372,0.00014711,2]
[420955716,1776796233575,-514.81438372,0.00014711,2]
[420955717,1776796233585,-514.81438372,0.00014711,2]
[420955718,1776796233594,-514.81438372,0.00014711,2]
[420955719,1776796233604,-514.81438372,0.00014711,2]
[420955720,1776796233613,-514.81438372,0.00014711,2]
[420955721,1776796233623,-514.81438372,0.00014711,2]
[420955722,1776796233633,-514.81438372,0.00014711,2]
[420955723,1776796233642,-514.81438372,0.00014711,2]
[420955724,1776796233652,-514.81438372,0.00014711,2]
[420955725,1776796233661,-514.81438372,0.00014711,2]
[420955726,1776796233670,-514.81438372,0.00014711,2]
[420955727,1776796233680,-514.81438372,0.00014711,2]
[420955728,1776796233689,-514.81438372,0.00014711,2]
[420955729,1776796233698,-514.81438372,0.00014711,2]
[420955730,1776796233708,-547.57529905,0.00014711,2]
[420955731,1776796233717,-547.57529905,0.00014711,2]
[420955732,1776796233726,-547.57529905,0.00014711,2]
[420955733,1776796233735,-547.57529905,0.00014711,2]
[420955734,1776796233745,-547.57529905,0.00014711,2]
[420955735,1776796233755,-547.57529905,0.00014711,2]
[420955736,1776796233764,-547.57529905,0.00014711,2]
[420955737,1776796233774,-547.57529905,0.00014711,2]
[420955738,1776796233784,-547.57529905,0.00014711,2]
[420955739,1776796233793,-930.87800842,0.00014711,2]
[420955740,1776796233803,-52324.94668455,0.00014712,2]
[420955920,1776796239190,-1807.37804741,0.00014565,10]
[420955921,1776796239201,-13811.65410587,0.00014712,2]
[420956003,1776796243849,-13388.31786007,0.00014712,2]
[420956009,1776796246941,-7837.97246208,0.00014712,2]